Workbook

Sheet Volume-Based Calculator
I4: Standard Units Calculator
B6: PROJECT DESCRIPTION
C8: Project Name: | I8: Date: | K8: / | M8: / | Q8: City/State: | U8: / | Y8: Phone #:
C10: Engineer: | I10: Contractor: | Q10: Designed By: | X10: Prinsco Rep:
B12: DESIGN CRITERIA - BASED ON STORAGE VOLUME
AA13: **For Metric units, visit Prinsco.com
W14: =IF($AH$14="Standard","(in)","(mm)") -> (in) | AD14: ** | AH14: Standard
F16: 10000 | G16: =IF($AH$14="Standard","(cf)",CONCATENATE("(m",$AJ$16,")")) -> (cf) | L16: 38 | M16: =IF($AH$14="Standard","(ft)","(m)") -> (ft) | Q16: 40 | R16: % | W16: 0 | X16: =IF($AH$14="Standard","(ft)","(m)") -> (ft) | AA16: 4.5 | AB16: =IF($AH$14="Standard","(ft)","(m)") -> (ft) | AD16: 3.5 | AE16: =IF($AH$14="Standard","(ft)","(m)") -> (ft) | AI16: ² | AJ16: ³
F18: 0 | G18: =IF($AH$14="Standard","(in)","(mm)") -> (in) | L18: 0 | M18: =IF($AH$14="Standard","(in)","(mm)") -> (in) | Q18: 0 | R18: =IF($AH$14="Standard","(in)","(mm)") -> (in) | W18: 0 | X18: =IF($AH$14="Standard","(in)","(mm)") -> (in)
B20: SYSTEM LAYOUT
AH28: 1
AH29: 0
AH30: 0
AH31: 0
AH32: Width Calculations
AH33: totalvolume | AI33: numberofrows | AJ33: chambersperrow
AH34: 4312.338867 | AI34: 10 | AJ34: 1 | AK34: max width
AQ35: 225.25 | AR35: perimeter
AK36: if max width > target | AQ36: 74.5 | AR36: side1
AQ37: 34.75 | AR37: side2
AH38: 20775.32422 | AI38: 10 | AJ38: 10 | AK38: add 1 to each row | AQ38: 67.42500305 | AR38: side3
AQ39: 26 | AR39: side4
AH40: 20052.04297 | AI40: 10 | AJ40: 10 | AK40: take off to meet target | AQ40: 10.82500172 | AR40: side5
AQ41: 11.75 | AR41: side6
C42: Min. Burial Depth: | F42: 16" | G42: WARNING: Burial Depth Too Shallow | AJ42: 4 | AK42: c | AQ42: 2420.84375 | AR42: systemfootprint
C44: Max. Burial Depth: | F44: 8' | G44: WARNING: Burial Depth Exceeds Recommendation | AQ44: =((AQ49*AQ35)) -> 782.7437285 | AR44: nonwoven calc
B46: SYSTEM STORAGE & QUANTITIES | AQ46: 74.5 | AR46: trenchlength
AQ47: 0 | AR47: maxrowvolume
AQ48: 7 | AR48: numberofrows
C49: 2 | D49: of | E49: 30 | F49: & | G49: 9 | H49: of | I49: 29 | M49: 7825.439941 | O49: =IF($AH$14="Standard","(sf)",CONCATENATE("(m",$AI$16,")")) -> (sf) | Q49: 5101.564453 | R49: =IF($AH$14="Standard","(cf)",CONCATENATE("(m",$AJ$16,")")) -> (cf) | U49: 0 | W49: =IF($AH$14="Standard","(cf)",CONCATENATE("(m",$AJ$16,")")) -> (cf) | Y49: 4892.839844 | Z49: =IF($AH$14="Standard","(cf)",CONCATENATE("(m",$AJ$16,")")) -> (cf) | AC49: 10026.92578 | AD49: =IF($AH$14="Standard","(cf)",CONCATENATE("(m",$AJ$16,")")) -> (cf) | AQ49: 3.474999905 | AR49: system height
C50: rows | E50: chambers | G50: rows | I50: chambers | AQ50: 32.79999924 | AR50: systemwidth
AQ51: 72.5 | AR51: systemlength
AQ52: 2 | AR52: rows1
AQ53: 10 | AR53: chambers1
AQ54: 10 | AR54: chambersperrow
D55: 321 | G55: 22 | M55: 472.3666077 | O55: =IF($AH$14="Standard","(cy)",CONCATENATE("(m",$AJ$16,")")) -> (cy) | R55: 2192.973877 | S55: =IF($AH$14="Standard","(sy)",CONCATENATE("(m",$AI$16,")")) -> (sy) | W55: 8.472222328 | X55: =IF($AH$14="Standard","(sy)",CONCATENATE("(m",$AI$16,")")) -> (sy) | AA55: 200.8333282 | AB55: =IF($AH$14="Standard","(sy)",CONCATENATE("(m",$AI$16,")")) -> (sy) | AQ55: 749.9241333 | AR55: nonwovengeotextile
AF60: V-6.5
C270: 25000

Sheet Layout-Based Calculator
P3: Standard Units Calculator
F4: PROJECT DESCRIPTION
J6: Project Name: | V6: Date: | Y6: / | AB6: / | AH6: City / State: | AO6: / | AT6: Phone #:
J7: Engineer: | W7: Contractor: | AH7: Designed By: | AT7: Prinsco Rep:
F9: DESIGN CRITERIA - BASED ON SYSTEM DIMENSIONS
AO12: One Value Must Be Zero
K13: 5 | T13: 5 | AC13: 40 | AE13: % | AL13: 0 | AN13: =IF(Draft!$S$3=2,"(ft)","(m)") -> (ft) | AS13: 12.5 | AU13: =IF(Draft!$S$3=2,"(ft)","(m)") -> (ft) | BA13: 6.54 | BC13: =IF(Draft!$S$3=2,"(ft)","(m)") -> (ft)
K15: 0 | M15: =IF(Draft!$S$3=2,"(in)","(mm)") -> (in) | T15: 0 | V15: =IF(Draft!$S$3=2,"(in)","(mm)") -> (in) | AC15: 0 | AE15: =IF(Draft!$S$3=2,"(in)","(mm)") -> (in) | AL15: 0 | AN15: =IF(Draft!$S$3=2,"(in)","(mm)") -> (in) | BB15: **
AQ16: **For Metric units, visit Prinsco.com
G31: Minimum Burial Depth | L31: ='LB Calcs'!G36/12 -> 1.333333333 | N31: =IF(Draft!$S$3=2,"(ft)","(m)") -> (ft) | O31: Warning - Burial Depth Too Shallow
G32: Maximum Burial Depth | L32: ='LB Calcs'!G37 -> 8 | N32: =IF(Draft!$S$3=2,"(ft)","(m)") -> (ft) | O32: Warning - Burial Depth Too Deep | Z32: Contact Prinsco Sales Representative
M39: =IF(Draft!S3=2, 'LB Calcs'!G9,'LB Calcs'!I9) -> 703.1895833 | O39: =IF(Draft!$S$3=2,"(sq.f)","(sq.m)") -> (sq.f) | T39: =IF(Draft!$S$3=2, 'LB Calcs'!G7,'LB Calcs'!I7) -> 493.0620224 | V39: =IF(Draft!$S$3=2,"(cu.f)","(cu.m)") -> (cu.f) | AB39: =IF(Draft!$S$3=2, 'LB Calcs'!G5,'LB Calcs'!I5) -> 13.25666976 | AD39: =IF(Draft!$S$3=2,"(cu.f)","(cu.m)") -> (cu.f) | AJ39: =IF(Draft!$S$3=2, 'LB Calcs'!G4,'LB Calcs'!I4) -> 385.2 | AL39: =IF(Draft!$S$3=2,"(cu.f)","(cu.m)") -> (cu.f) | AQ39: =IF(Draft!$S$3=2,'LB Calcs'!G8,'LB Calcs'!I8) -> 891.5186922 | AT39: =IF(Draft!$S$3=2,"(cu.f)","(cu.m)") -> (cu.f)
F42: 23.5"
I43: ='LB Calcs'!G32 -> 25 | P43: ='LB Calcs'!G33 -> 10 | X43: =IF(Draft!$S$3=2,'LB Calcs'!G10,'LB Calcs'!I10) -> 45.65389097 | Z43: =IF(Draft!$S$3=2,"(cu.y)","(cu.m)") -> (cu.y) | AF43: =IF(Draft!$S$3=2,'LB Calcs'!G11,'LB Calcs'!I11) -> 223.6348111 | AH43: =IF(Draft!$S$3=2,"(sq.y)","(sq.m)") -> (sq.y) | AN43: =IF(Draft!$S$3=2,'LB Calcs'!G39,'LB Calcs'!I37) -> 22.77222222 | AP43: =IF(Draft!$S$3=2,"(sq.y)","(sq.m)") -> (sq.y) | AV43: =IF(Draft!$S$3=2,'LB Calcs'!G40,'LB Calcs'!I38) -> 35.8816037 | AX43: =IF(Draft!$S$3=2,"(sq.y)","(sq.m)") -> (sq.y)
F44: 8'
BD46: V-6.5

Sheet LB Calcs (hidden)
I1: Conversion Column | J1: Final LB Outputs | K1: Chamber Size | L1: Constraint Type | M1: Pipe Diameters (IN) | N1: # of Manifolds | O1: Include Volume of the Manifolds | P1: Conversions Key
K2: HS290 | L2: LENGTH | M2: =IF(A4=4,"8 in (200 mm)","") -> 8 in (200 mm) | N2: 1 | O2: Yes | P2: in/m | Q2: 39.3701
B3: Inputs | C3: Inputs | D3: inch values | F3: Outputs | K3: HS180 | L3: WIDTH | M3: =IF(A4=4,"10 in (250 mm)","") -> 10 in (250 mm) | N3: 2 | O3: No | P3: ft/m | Q3: 3.28
A4: 4 | B4: Chamber Size | C4: =IF(A4=3,"HS75",IF(A4=2,"HS180",IF(A4=1,"HS290","HS31"))) -> HS31 | F4: Chamber Storage | G4: =IF(C4="HS75",((G33*Tables!Q16)+(G32*Tables!O16)),IF(C4="HS180",((G33*Tables!Q17)+(G32*Tables!O17)),IF(C4="HS31",((G33*Tables!Q15)+(G32*Tables!O15)),((G33*Tables!Q18)+(G32*Tables!O18))))) -> 385.2 | H4: cf | I4: =G4/Q4 -> 10.90763903 | K4: HS75 | M4: 12 in. (300 mm) | P4: cf/cm | Q4: 35.3147
A5: 3 | B5: Manifold size | C5: =IF(A5=1,8,IF(A5=2,10,IF(A5=3,12,IF(A5=4,15,IF(A5=5,18,IF(A5=6,24,IF(A5=7,30,IF(A5=8,36)))))))) -> 12 | F5: Manifold Storage | G5: =IF(C7="YES",(((VLOOKUP(C5,Tables!C3:Q11,13,0))+((C8-1)*VLOOKUP(C5,Tables!C3:Q11,10,0))+((G19-(VLOOKUP(C5,Tables!C3:Q11,12,0)/12)-((C8-1)*(VLOOKUP(C5,Tables!C3:Q11,9,0)/12)))*VLOOKUP(C5,Tables!C3:Q11,8,0)))*C6),0) -> 13.25666976 | H5: cf | I5: =G5/Q4 -> 0.3753867301 | K5: HS31 | M5: =IF(A4=4,"","15 in. (375 mm)") ->  | P5: cy/cm | Q5: 1.30795062
A6: 1 | B6: Number of Manifolds | C6: =INDEX(N2:N3,A6) -> 1 | F6: Manifold Displacement | G6: =((((C8-1)*VLOOKUP(C5,Tables!C3:Q11,11,0))+((G19+(VLOOKUP(C5,Tables!C3:Q11,12,0)/12)-((C8-1)*(VLOOKUP(C5,Tables!C3:Q11,9,0)/12)))*VLOOKUP(C5,Tables!C3:Q11,15,0)))*C6) -> 20.57667306 | H6: cf | I6: =G6/Q4 -> 0.5826659454 | M6: =IF(A4=4,"","18 in. (450 mm)") ->  | P6: sy/sm | Q6: 1.19599
A7: 1 | B7: Include Manifold Volume | C7: =IF(A7=1,"YES","NO") -> YES | F7: Stone Storage | G7: =((G9*G35)-G6-G4)*C10 -> 493.0620224 | H7: cf | I7: =G7/Q4 -> 13.96194849 | M7: =IF(A4=4,"","24 in. (600 mm)") ->  | P7: sf/sm | Q7: 10.7639
B8: Number oF Rows | C8: ='Layout-Based Calculator'!K13 -> 5 | F8: Total Storage | G8: =G4+G5+G7 -> 891.5186922 | H8: cf | I8: =G8/Q4 -> 25.24497425 | P8: in/mm | Q8: 0.03937
B9: Number of Chambers Per Row | C9: ='Layout-Based Calculator'!T13 -> 5 | F9: System Footprint | G9: =G21*G20 -> 703.1895833 | H9: sf | I9: =G9/Q7 -> 65.32851321 | M9: =IF(A4=4,"",IF(A4=1,"",IF(A4=2,"","36 in. (900 mm)"))) -> 
A10: ='Layout-Based Calculator'!AC13 -> 40 | B10: Stone Porosity | C10: =A10/100 -> 0.4 | F10: Required Backfill (Embedment) | G10: =((G9*G35)-G6-G4)/27 -> 45.65389097 | H10: CY | I10: =G10/Q5 -> 34.90490411 | P10: Conversion labels
B11: Additional Stone Below Chamber | C11: ='Layout-Based Calculator'!T15 -> 0 | D11: =IF(Draft!$S$3=2,'LB Calcs'!C11*1,'LB Calcs'!C11/$Q$2) -> 0 | F11: Non-Woven Geotextile (System Perimeter) | G11: =(((G9*2)+(G20*G35*2)+(G21*G35*2))*1.2)/9 -> 223.6348111 | H11: SY | I11: =G11/Q6 -> 186.9871915 | P11: in | Q11: =IF(Draft!$S$3=2,'LB Calcs'!P12,'LB Calcs'!P13) -> ft
B12: Additional Stone Above Chamber | C12: ='Layout-Based Calculator'!K15 -> 0 | D12: =IF(Draft!$S$3=2,'LB Calcs'!C12*1,'LB Calcs'!C12*$Q$8) -> 0 | F12: Chamber Length | G12: =IF(C4="HS180",Tables!F17/12,IF(C4="HS75",Tables!F16/12,IF(C4="HS31",Tables!F15/12,Tables!F18/12))) -> 7.1225 | I12: =IF(Draft!$S$3=2,'LB Calcs'!G13,G13/$Q$3) -> 36.75833333 | J12: =ROUND(I12,1)&" "&$Q$11 -> 36.8 ft | P12: ft | Q12: =IF(Draft!$S$3=2,'LB Calcs'!P11,'LB Calcs'!P14) -> in
B13: Additional Stone Side of Chamber | C13: ='Layout-Based Calculator'!AC15 -> 0 | D13: =IF(Draft!$S$3=2,'LB Calcs'!C13*1,'LB Calcs'!C13*$Q$8) -> 0 | F13: System Length (w/o Manifolds) | G13: =((C9*G12)+(2*IF(C4="HS75",Tables!P16,IF(C4="HS180",Tables!P17,IF(C4="HS31",Tables!P15,Tables!P18))))/12) -> 36.75833333 | H13: ft | P13: m
B14: Additional Spacing Between Chamber | C14: ='Layout-Based Calculator'!AL15 -> 0 | D14: =IF(Draft!$S$3=2,'LB Calcs'!C14*1,'LB Calcs'!C14*$Q$8) -> 0 | F14: Endcap Stub Lenth (1 side) | G14: =(IF(C4="HS290",VLOOKUP(C5,Tables!C3:W11,21,TRUE),IF(C4="HS180",(VLOOKUP(C5,Tables!C3:W11,20,TRUE)),IF(C4="HS75",(VLOOKUP(C5,Tables!C3:W11,19,TRUE)),(VLOOKUP(C5,Tables!C3:W11,18,FALSE)))))/12) -> 0.6216666667 | H14: ft | I14: =IF(C6>0,G18+(C6*1),G13+(IF(OR(C4="HS75","HS180"),1,2))) -> 39.9625 | P14: mm
B15: Remove Number of Chambers | C15: =A15 -> 0 | F15: Manifold Tee/Elbow Overall Length (1 side) | G15: =(VLOOKUP(C5,Tables!C3:W11,14,FALSE)/12) -> 1.5825 | H15: ft
A16: 2 | B16: High Rim Elevation | C16: =IF(Draft!$S$3=2,'LB Calcs'!D16,'LB Calcs'!D16*'LB Calcs'!$L$18) -> 12.5 | D16: ='Layout-Based Calculator'!AS13 -> 12.5 | H16: ft
A17: ='Layout-Based Calculator'!BA13 -> 6.54 | B17: Low Rim Elevation | C17: =IF(Draft!$S$3=2,'LB Calcs'!D17,'LB Calcs'!D17*'LB Calcs'!$L$18) -> 6.54 | D17: ='Layout-Based Calculator'!BA13 -> 6.54 | H17: ft
A18: ='Layout-Based Calculator'!AL13 -> 0 | B18: Bottom of Stone (Bottom of System) | C18: =IF(Draft!$S$3=2,'LB Calcs'!D18,'LB Calcs'!D18*'LB Calcs'!$L$18) -> 0 | D18: ='Layout-Based Calculator'!AL13 -> 0 | F18: System Length (w/ Manifolds) | G18: =G13+G14*C6+G15*C6 -> 38.9625 | H18: ft
F19: System Width | G19: =((C8*G23)+((C8-1)*G22))/12 -> 15.16666667 | H19: ft | I19: =IF(Draft!$S$3=2,'LB Calcs'!G19,G19/$Q$3) -> 15.16666667 | J19: =ROUND(I19,1)&" "&$Q$11 -> 15.2 ft
F20: Trench Length | G20: =G18+IF(C6=0,(G25/12)*2,IF(C6=1,(G25/12)+1,2)) -> 40.9625 | H20: ft | I20: =IF(Draft!$S$3=2,'LB Calcs'!G20,G20/$Q$3) -> 40.9625 | J20: =ROUND(I20,1)&" "&$Q$11 -> 41 ft
F21: Trench Width | G21: =(G19+(2*(G24/12)))+(2*(A13/12))+((C8-1)*(A14/12)) -> 17.16666667 | H21: ft | I21: =IF(Draft!$S$3=2,'LB Calcs'!G21,G21/$Q$3) -> 17.16666667 | J21: =ROUND(I21,1)&" "&$Q$11 -> 17.2 ft
F22: Spacing Between Chambers | G22: =(IF(C4="HS75",Tables!H16,IF(C4="HS180",Tables!H17,IF(C4="HS31",Tables!H15,Tables!H18))))+$D$14 -> 3 | H22: in | I22: =IF(Draft!$S$3=2,'LB Calcs'!G22,G22/$Q$8) -> 3 | J22: =ROUND(I22,1)&" "&$Q$12 -> 3 in
F23: Chamber Width | G23: =IF(C4="HS75",Tables!E16,IF(C4="HS180",Tables!E17,IF(C4="HS31",Tables!E15,Tables!E18))) -> 34 | H23: in | I23: =IF(Draft!$S$3=2,'LB Calcs'!G23,G23/$Q$8) -> 34 | J23: =ROUND(I23,1)&" "&$Q$12 -> 34 in
F24: End Stone (Chamber) | G24: =(IF(C4="HS75",Tables!I16,IF(C4="HS180",Tables!I17,IF(C4="HS31",Tables!I15,Tables!I18))))+$D$13 -> 12 | H24: in | I24: =IF(Draft!$S$3=2,'LB Calcs'!G24,G24/$Q$8) -> 12 | J24: =ROUND(I24,0)&" "&$Q$12 -> 12 in
F25: End Stone (End Cap) | G25: =IF(C4="HS75",Tables!J16,IF(C4="HS180",Tables!J17,IF(C4="HS31",Tables!J15,Tables!J18))) -> 12 | H25: in | I25: =IF(Draft!$S$3=2,'LB Calcs'!G25,G25/$Q$8) -> 12
F26: Bedding Height | G26: =(IF(C4="HS75",VLOOKUP("HS75",Tables!C15:R18,9,FALSE),IF(C4="HS180",VLOOKUP("HS180",Tables!C15:R18,9,FALSE),IF(C4="HS31",VLOOKUP("HS31",Tables!C15:R18,9,FALSE),VLOOKUP("HS290",Tables!C15:R18,9,FALSE)))))+$D$11 -> 6 | H26: ft | I26: =IF(Draft!$S$3=2,'LB Calcs'!G26,G26/$Q$8) -> 6 | J26: =ROUND(I26,0)&" "&$Q$12 -> 6 in
F27: Chamber Height | G27: =(IF(C4="HS75",VLOOKUP("HS75",Tables!C15:R18,2,FALSE),IF(C4="HS180",VLOOKUP("HS180",Tables!C15:R18,2,FALSE),IF(C4="HS31",VLOOKUP("HS31",Tables!C15:R18,2,FALSE),VLOOKUP("HS290",Tables!C15:R18,2,FALSE))))) -> 16 | I27: =IF(Draft!$S$3=2,'LB Calcs'!G27,G27/$Q$8) -> 16 | J27: =ROUND(I27,0)&" "&$Q$12 -> 16 in
F28: Embedment Height | G28: =(IF(C4="HS75",VLOOKUP("HS75",Tables!C15:R18,10,FALSE),IF(C4="HS180",VLOOKUP("HS180",Tables!C15:R18,10,FALSE),IF(C4="HS31",VLOOKUP("HS31",Tables!C15:R18,10,FALSE),VLOOKUP("HS290",Tables!C15:R18,10,FALSE)))))+D12 -> 6 | I28: =IF(Draft!$S$3=2,'LB Calcs'!G28,G28/$Q$8) -> 6 | J28: =ROUND(I28,0)&" "&$Q$12 -> 6 in
F29: Initial Backfill height | G29: =MAX(0,(IF(C4="HS75",VLOOKUP("HS75",Tables!C15:R18,11,FALSE),IF(C4="HS180",VLOOKUP("HS180",Tables!C15:R18,11,FALSE),IF(C4="HS31",VLOOKUP("HS31",Tables!C15:R18,11,FALSE),VLOOKUP("HS290",Tables!C15:R18,11,FALSE))))-G28)) -> 10 | H29: ft | I29: =IF(Draft!$S$3=2,'LB Calcs'!G29,G29/$Q$8) -> 10 | J29: =ROUND(I29,0)&" "&$Q$12 -> 10 in
F30: Min cover height above chamber | G30: =(IF(C4="HS75",VLOOKUP("HS75",Tables!C15:R18,11,FALSE),IF(C4="HS180",VLOOKUP("HS180",Tables!C15:R18,11,FALSE),IF(C4="HS31",VLOOKUP("HS31",Tables!C15:R18,11,FALSE),VLOOKUP("HS290",Tables!C15:R18,11,FALSE))))) -> 16 | I30: =IF(Draft!$S$3=2,'LB Calcs'!G30,G30/$Q$8) -> 16 | J30: =ROUND(I30,0)&" "&$Q$12 -> 16 in
F31: Final Backfill Height | G31: =(((D16+D17)/2)-D18)-#REF! ->  | H31: in
F32: Number of Chambers | G32: =(C8*C9)-C15 -> 25
F33: Number of End Caps | G33: =C8*2 -> 10
F34: End Cap Length | G34: =IF(C4="HS180",Tables!P17/12,IF(C4="HS75",Tables!P16/12,IF(C4="HS31",Tables!P15/12,Tables!P18/12))) -> 0.5729166667 | I34: =IF(Draft!$S$3=2,'LB Calcs'!G36,G36/$Q$8) -> 16 | J34: =ROUND(I34,0)&" "&$Q$12 -> 16 in
F35: Stone Height | G35: =ROUND((G26+G27+G28)/12,2) -> 2.33
F36: Min. Burial Depth | G36: =ROUND((VLOOKUP(C4,Tables!C15:Q18,11,0)),0) -> 16 | L36: =VLOOKUP(C4,Tables!C15:Q18,11,0)
F37: Max. Burial Depth | G37: 8 | I37: =G39/Q6 -> 19.04047879
I38: =G40/Q6 -> 30.00159174
F39: Woven Geotextile - Scour | G39: =(((G19-(G23/12)+1.33)*15)*1)/9 -> 22.77222222 | H39: ft
F40: Woven Geotextile - Sediment Row | G40: =((((IF(C4="HS75",Tables!R16,IF(C4="HS180",Tables!R17,IF(C4="HS31",Tables!R15,Tables!R18)))*(G13+2))*2)*1)/9) -> 35.8816037 | H40: ft
F42: Picture Selector | G42: =IF(C6=2,"DM","SM") -> SM
F44: Additional Calculations (Standard)
F45: Min Burial Depth Needed | G45: =($G$26+$G$27+$G$29+$G$28)/12 -> 3.166666667
F46: Max RIM | G46: ='Layout-Based Calculator'!AS13:AT13 -> 12.5 | H46: 0
F47: Min RIM | G47: ='Layout-Based Calculator'!BA13:BB13 -> 6.54 | H47: 0
F48: Bottom of Bedding Elevation | G48: ='Layout-Based Calculator'!AL13:AM13 -> 0 | H48: 0
F49: Min Allowed Elevation | G49: =G48+G45 -> 3.166666667
F50: Max Allowed Elevation | G50: =G48+8+(($G$26+$G$27)/12) -> 9.833333333
F51: Max. Burial Depth Check | G51: =IF(G50>=G46, "Yes","No") -> No
F52: Min. Burial Depth Check | G52: =IF(G49<=G47, "Yes","No") -> Yes
F53: Min height above chamber | G53: =ROUND(G47-((G26+G27))/12,1) -> 4.7
F54: Max height above chamber | G54: =ROUND(G46-((G26+G27))/12,1) -> 10.7
F55: Additional Calculations (Metric) | I55: Max. Burial Depth Check | J55: =IF(Draft!$S$3=2,(IF(G50>=G46, "Yes","No")),(IF(G61>=G57,"Yes","No"))) -> No | K55: max 51
F56: Min Burial Depth Needed | G56: =(($G$26+$G$27+$G$29+$G$28)/12)/Q3 -> 0.9654471545 | I56: Min. Burial Depth Check | J56: =IF(Draft!$S$3=2,(IF(G49<=G47,"Yes","No")),(IF(G60<=G58,"Yes","No"))) -> Yes | K56: min 52
F57: Max RIM | G57: ='Layout-Based Calculator'!AS13:AT13 -> 12.5 | H57: 0
F58: Min RIM | G58: ='Layout-Based Calculator'!BA13:BB13 -> 6.54 | H58: 0
F59: Bottom of Bedding Elevation | G59: ='Layout-Based Calculator'!AL13:AM13 -> 0 | H59: 0
F60: Min Allowed Elevation | G60: =G59+G56 -> 0.9654471545
F61: Max Allowed Elevation | G61: =G59+3.05 -> 3.05
F62: Max. Burial Depth Check | G62: =IF(G61>=G57, "Yes","No") -> No
F63: Min. Burial Depth Check | G63: =IF(G60<=G58, "Yes","No") -> Yes
F64: Min height above chamber | G64: =ROUND(G58-((G26+G27))/12/Q3,1) -> 6
F65: Max height above chamber | G65: =ROUND(G57-((G26+G27))/12/Q3,1) -> 11.9

Sheet Draft (hidden)
A3: Chamber Size | H3: Number of Chambers | Q3: Metric | S3: 2
A4: Required Storage Volume | H4: Number of End Caps | Q4: Standard | S4: 1
A5: Bed size controlled by Length or Width? | H5: Bed Size (Including Perimiter Stone)
A6: Limiting Width or Length dimension | H6: Stone Required (Including Perimeter Stone)
A7: Stone Porosity | H7: Volume of Excavation
A8: Stone Above Chambers | H8: Non-Woven Filter Fabric Required (20% Safety Factor)
A9: Stone Foundation Depth | H9: Length of Isolator Row
A10: Average Cover Over Chambers | H10: Woven Isolator Row Fabric (20% Safety Factor) | R10: m2
H13: Installed Storage Volume
H14: Storage Volume per Chamber
H15: Storage Volume per End Cap
A18: Maximum Length
B20: Rows of | D20: Chambers
B21: Row of | D21: Chambers
A23: Maximum Length
A24: Maximum Width

Sheet Tables (hidden)
C1: WC | T1: Values below based on Pipe Gallery 4.9 (2025)
C2: System Size | D2: ID (IN) | E2: OD (IN) | F2: Manifold C/C Spacing (IN) | G2: Column Width (FT) | H2: Edge Dist. (FT) | I2: Bedding (in) | J2: ID Storage Capacity (CF/FT) | K2: Tee Width (IN) | L2: ID Volume of Tee (CF) | M2: OD Volume Displacement of Tee (CF) | N2: 90 Stub (Center to End) (IN) | O2: ID Volume of 90 Elbow (CF) | P2: Tee System Length (in) | Q2: Displacement SQFT | R2: Tee Stub Length (IN) | S2: OD Volume Displacement (CF/FT) | T2: HS31 Endcap Stub Length (in) | U2: HS75 Endcap Stub Length (in) | V2: HS180 Endcap Stub Length (in) | W2: HS290 Endcap Stub Length (in)
B3: 1 | C3: 12 | D3: 12.0765 | E3: 14.616 | F3: 23.5 | G3: 0.7539166667 | H3: 0.6666666667 | I3: 4 | J3: 0.794764374 | K3: 23.52 | L3: =J3*((R3+K3)/12) -> 1.858424028 | M3: =(((E3^2)*PI()/4)/144)*((K3+R3)/12) -> 2.72452551 | N3: 11.76 | O3: =J3*(N3/12) -> 0.7788690865 | P3: 18.99 | Q3: =((E3^2)*PI()/4)/144 -> 1.165157025 | R3: =4.54 -> 4.54 | S3: 1.079620154 | T3: 7.46 | U3: 9.28 | V3: 10.12 | W3: 11.62 | Y3: =T3+R3+E3 -> 26.616
B4: 2 | C4: 15 | D4: 15.15 | E4: 17.79 | F4: 28.7 | G4: 0.9208333333 | H4: 0.6666666667 | I4: 4 | J4: 1.249763547 | K4: 28.71 | L4: =J4*((R4+K4)/12) -> 3.567033458 | M4: =(((E4^2)*PI()/4)/144)*((K4+R4)/12) -> 4.926728332 | N4: 14.36 | O4: =J4*(N4/12) -> 1.495550378 | P4: 23.17 | Q4: =((E4^2)*PI()/4)/144 -> 1.726152992 | R4: =5.54 -> 5.54 | S4: 1.607347714 | T4: 0 | U4: 9.28 | V4: 10.12 | W4: 11.62
B5: 3 | C5: 18 | D5: 18.0845 | E5: 21.3635 | F5: 35.4 | G5: 1.161666667 | H5: 0.75 | I5: 4 | J5: 1.782810509 | K5: 35.35 | L5: 6.287378394 | M5: 8.778829458 | N5: 17.7 | O5: =J5*(N5/12) -> 2.6296455 | P5: 28.38 | Q5: 2.489271113 | R5: =6.97 -> 6.97 | S5: 2.347207755 | T5: 0 | U5: 9.28 | V5: 10.12 | W5: 11.62
B6: 4 | C6: 24 | D6: 24.36 | E6: 28.145 | F6: 47.1 | G6: 1.579583333 | H6: 0.8333333333 | I6: 4 | J6: 3.226720001 | K6: 47.14 | L6: 15.23549627 | M6: 20.39976758 | N6: 23.6 | O6: 6.345882669 | P6: 37.62 | Q6: 4.320459071 | R6: =9.52 -> 9.52 | S6: 4.087996322 | T6: 0 | U6: 9.28 | V6: 10.12 | W6: 11.62
B7: 5 | C7: 30 | D7: 29.872 | E7: 34.675 | F7: 55 | G7: 1.69375 | H7: 1.5 | I7: 4 | J7: 4.866870111 | K7: 54.99 | L7: 26.43521615 | M7: 35.61996094 | N7: 27.5 | O7: 11.153244 | P7: 44.81 | Q7: 6.557832636 | R7: =10.19 -> 10.19 | S7: 6.21474952 | T7: 0 | V7: 10.12
B8: 6 | C8: 36 | D8: 35.46 | E8: 40.5 | F8: 61.3 | G8: 1.722916667 | H8: 1.5 | I8: 4 | J8: 6.840981364 | K8: 61.31 | L8: 40.81785547 | M8: 53.37884986 | N8: 30.7 | O8: 17.50151066 | P8: 13.5 | Q8: 8.946175955 | R8: =10.29 -> 10.29 | S8: 8.531892743 | T8: 0
B9: 7 | C9: 0 | D9: 0 | E9: 0 | F9: 0 | G9: 0 | H9: 0 | I9: 0 | J9: =(((D9/2)^2)*PI())/144 -> 0 | K9: 0 | L9: 0 | M9: 0 | N9: 0 | O9: 0 | P9: 0 | Q9: 0 | R9: 0 | S9: =((E9^2)*PI()/4)/144 -> 0 | T9: 0
B10: 8 | C10: 8 | D10: 8.12 | E10: 9.62 | I10: 4 | J10: 0.3596163657 | K10: 19.6 | L10: =J10*((R10+K10)/12) -> 0.7369138694 | M10: 1.034319747 | N10: 9.8 | O10: 0.2936866987 | P10: 14.61 | Q10: 0.5047514013 | R10: 4.99 | S10: 0.5047514013 | T10: 7.01
B11: 9 | C11: 10 | D11: 10.15 | E11: 11.86 | F11: 94.2 | G11: 2.28125 | H11: 1.5 | I11: 4 | J11: 0.5619005714 | K11: 26.13 | L11: 1.557869334 | M11: 2.127004076 | N11: 13.07 | O11: 0.6120033724 | P11: 18.99 | Q11: 0.7671791077 | R11: 7.14 | S11: 0.7671791077 | T11: 4.86
B12: 10 | C12: 1 | D12: 2 | E12: 3 | F12: 4 | G12: 5 | H12: 6 | I12: 7 | J12: 8 | K12: 9 | L12: 10 | M12: 11 | N12: 12 | O12: 13 | P12: 14 | Q12: 15 | R12: 16 | S12: 17 | T12: 18 | U12: 19 | V12: 20 | W12: 21
B13: 11 | C13: Chamber
C14: Chamber Size | D14: Chamber Height (in) | E14: Chamber Width (in) | F14: Chamber Length (installed) (in) | G14: Manifold C/C Spacing (FT) | H14: Chamber Spacing (in) | I14: Edge Dist from edge of chamber. (in) | J14: End Dist from edge of endcap (in) | K14: Bedding (in) | L14: Height of Embedment above Chamber (in) | M14: Min. Initial Backfill Height (in) | N14: Sediment Width (ft) | O14: Storage Capacity (CF/Chamber) | P14: Length of End Cap (in) | Q14: End Cap Storage (CF) | R14: Sediment Width (ft)
C15: HS31 | D15: 16 | E15: 34 | F15: 85.47 | G15: 39.9 | H15: 3 | I15: 12 | J15: 12 | K15: 6 | L15: 6 | M15: 16 | N15: =4+(2/12) -> 4.166666667 | O15: 15.16 | P15: 6.875 | Q15: 0.62 | R15: 4.166
C16: HS75 | D16: 30 | E16: 51 | F16: 84.9 | G16: =E16+H16 -> 57 | H16: 6 | I16: 12 | J16: 12 | K16: 6 | L16: 6 | M16: 18 | N16: 5 | O16: 46.64 | P16: 10.44 | Q16: 3.42 | R16: 5
B17: 1 | C17: HS180 | D17: 45.5 | E17: 77.8 | F17: 85.3 | G17: =E17+H17 -> 82.8 | H17: 5 | I17: 12 | J17: 6 | K17: 9 | L17: 12 | M17: 18 | N17: 7.5 | O17: 113.6 | P17: 22.1 | Q17: 15.3 | R17: 7.5
B18: 2 | C18: HS290 | D18: 60 | E18: 100.5 | F18: 48.3 | G18: 109 | H18: 8.5 | I18: 12 | J18: 12 | K18: 9 | L18: 12 | M18: 24 | N18: 9.75 | O18: 109.6 | P18: 32.4 | Q18: 39.6 | R18: 9.75
B19: 3 | C19: 1 | D19: 2 | E19: 3 | F19: 4 | G19: 5 | H19: 6 | I19: 7 | J19: 8 | K19: 9 | L19: 10 | M19: 11 | N19: 12 | O19: 13 | P19: 14 | Q19: 15
B20: 4
D21: pink is update to spacing and cover for HS31 2025
A24: 3
A25: 6 inches | B25: Confirm distance between end cap & manifold on table
B26: Confirm width of manifold on table
B27: Confirm extra trench length after manifold

Sheet Pics (hidden)
I1: =IF('LB Calcs'!$C$6=1,"ONEMANIFOLD","TWOMANIFOLDS") -> ONEMANIFOLD | J1: =IF('LB Calcs'!$C$6=1,"ONEMANIFOLD","TWOMANIFOLDS") -> ONEMANIFOLD

Sheet Versions (hidden)
C2: Version | D2: Date | E2: Action | F2: Editor
C3: 4.3 | D3: 2019-11-18 | E3: Endcap volumes where updated on the Tables Tab and one place in the VBA coding | F3: Sam Ewald
C4: 4.4 | D4: 2019-11-29 | E4: Coding on VBA changed so the Volume-Based tab didn't error-out when switching from standard to metric | F4: Sam Ewald
E5: Print area adjusted so only one page prints
E6: New Logos added
C7: 4.5 | E7: Minor changes? (SPEL Version) | F7: Sam Ewald
C8: 4.6 | D8: 2020-03-18 | E8: VBA Coding Module1 Changes | F8: Sam Ewald
E9: Case "Metric"
E10: From: "syconversion = 0.1111"
E11: To: "syconversion = 0.83612"
E12: From: " cyconversion = 0.037037"
E13: To: "cyconversion = 0.76455"
C14: 4.7 | D14: 2020-03-23 | E14: Corrected units workbook "volume-based" cell W14
C15: 5.1 | D15: 2020-09-17 | E15: Added in HS31 and HS290 with HS290 turned off until product release
E16: Lots of changes to calcs, inputs, exports modified at this time | F16: Sam Ewald
C17: 5.2 | D17: 2020-09-21 | E17: Changed some formulas in Layout-based calculator to solve "#REF" issues with referencing manifold diamter | F17: Sam Ewald
C18: 5.3 | D18: 2020-10-01 | E18: Fixed print view on layout-based calculator | F18: Sam Ewald
C19: 5.4 | D19: 2020-10-12 | E19: Fixed metric for layout-based manifold volume quantities | F19: Sam Ewald
C20: 5.8 | D20: 2021-02-08 | E20: Added HS290 functions | F20: Sam Ewald
C21: 5.9 | D21: 2021-09-30 | E21: Changed row spacing for HS180 from 8" to 6" and cover heights from 24" to 18". | F21: Sam Ewald
C22: 6.2 | D22: 2022-07-14 | E22: LB Calc: Trench length coding changed; now if there's 0 manifolds, it adds 2*end stone (usually 2'). If 1 man, 1 end stone+ 1 ft extra (2'). If 2 man, 2 ft extra. Was adding 2' in all scenarios even though HS180 has less spacing. VB Calc: Changed min cover for HS180 from 24" to 18". Trenchlength now changed to =side1 as this is calculated using varying endcaptotrench variable instead of previous calculation adding 2' to systemlength. Accounts for HS180 difference in spacing of 6" compared to 12" for all other chambers. Also NOTE: made calculator faster by going on Layout-Based Calculator tab>Find & Select>Selection pane. Then select all extra images hidden behind the top view image. Do this when copying or creating new versions as it seems to duplicate images each time a version is copied. | F22: Amelie Dulas
